{"text_format":"3","workbook":"xlsx","n_sheets":5,"sheets":["2025年招聘计划表（总表）","2025年招聘计划（校招）","港澳台青年校招岗位汇总","港澳台青年实习岗位汇总","2025年招聘计划（社招）"],"not_rendered":{"defined_names":4},"read":"whole","date_system":"1900"}

{"sheet":"2025年招聘计划表（总表）","index":0,"n_rows":78,"n_cols":14,"rows_kept":78,"hidden":true,"merged":[[0,0,0,12],[1,0,2,0],[1,1,2,1],[1,2,2,2],[1,3,2,3],[1,4,2,4],[1,5,2,5],[1,6,1,9],[1,10,2,10],[1,11,2,11],[1,12,2,12],[1,13,2,13],[18,13,25,13],[47,1,49,1]]}
["新能源集团2025年招聘岗位需求表"]
["序号","招聘单位","招聘岗位","岗位描述","招聘形式\n（校招/社招）","招聘人数","招聘条件",{"$nulls":3},"工作地点","薪资待遇\n（万元/年）","板块","备注"]
[{"$nulls":6},"学历","学位","专业","其他任职条件"]
[1,"广西桂水电力股份有限公司龙州发电分公司","技术岗","负责各类工程项目的预算编制、成本控制、招投标及结算审核。需准确计算工程量与造价，监控项目成本，参与招投标及合同管理。","校招",1,"本科","无","土木工程专业","具备良好的沟通协调能力和团队合作精神，工作认真负责，注重细节，有较强的责任心。","龙州片区",5.5]
[2,"广西桂水电力股份有限公司龙州发电分公司","技术岗","主要负责公司集控系统及网络的维护、技术支持、数据库管理及网络管理等工作。维护现有系统稳定运行，确保安全完整。","校招",1,"本科","无","计算机科学与技术类","具备良好的学习能力和创新精神，能够快速掌握新技术，有较强的问题解决能力和团队合作精神。","龙州片区",5.5]
[null,"广西桂水电力股份有限公司龙州发电分公司 汇总",{"$nulls":3},{"$f":"SUBTOTAL(9,F4:F5)","v":0},{"$nulls":7},{"$f":"SUBTOTAL(9,N4:N5)","v":0}]
[3,"广西桂水电力股份有限公司大新发电分公司","工程管理员","1.按照公司相关审核标准及工程要求标准，负责对设计施工图、报价清单、材料清单等资料进行报审；\n2.完善部门预决算的项目成本评估体系建立；\n3.负责相关项目提交的技术变更和签证单、工程竣工财务决算的审计工作；\n4.负责工程决算期间跟进工程款付款方面的沟通协调问题、催收账款等。","校招",1,"本科及以上","不限","土木工程专业","1.应届毕业生，全日制本科及以上学历；\n2.熟悉水电建筑工程设预算、结算、验收等管理工作。\n3.具有良好的建筑工程软件操作能力。\n4.具备良好的沟通协调能力和抗压能力。","大新县",6,"能源板块"]
[4,"广西桂水电力股份有限公司大新发电分公司","党务专责","1.负责协助公司党支部认真贯彻、落实党的路线、方针、政策，抓好政治理论和党章的学习；\n2.做好党员发展工作，保证发展党员的质量和结构；\n3.健全党的组织生活等管理形式，做好党费收缴、党员组织关系接转、党的文件传递、材料的建档、统计等工作；\n4.协助做好纪检、监察、勤政廉洁和纠风方面的具体工作；\n5.负责相关工作文件、计划、总结、汇报、情况通报和其他有关材料的起草等工作；\n6.做好有关法律法规、党风党纪、反腐倡廉、企业文化建设的宣传教育工作，协助公司做好员工政治思想工作；","社招",1,"大专及以上","不限","汉语言文学、文秘、行政管理、文化事业管理、新闻与传播专业","1.40周岁以下，身体健康。\n2.热爱党务工作,熟悉党务知识、熟悉国企党建工作、群团工作。\n3.具有良好的办公软件操作能力。\n4.具备良好的沟通协调能力和抗压能力。","大新县",6,"能源板块"]
[5,"广西桂水电力股份有限公司大新发电分公司","会计员","1.负责公司会计核算和账务处理工作，编制财务报表，按集团公司要求上报相关财务资料；\n2.审核各类收支费用票据，并严格执行费用报销和资金付款的工作程序和管理规定，规范公司财务管理；\n3.负责会计凭证、账簿、财务报表的整理和存档；\n4.完成领导交办的其他工作。","社招",1,"本科及以上","不限","会计、财务管理、审计专业","1.30周岁以下，身体健康；\n2.熟练掌握会计知识和技能，熟悉财经法规；\n3.具有良好的办公软件和信息化系统操作能力；\n4.具备良好的沟通协调能力和抗压能力。","大新县",6,"能源板块"]
[null,"广西桂水电力股份有限公司大新发电分公司 汇总",{"$nulls":3},{"$f":"SUBTOTAL(9,F7:F9)","v":0},{"$nulls":7},{"$f":"SUBTOTAL(9,N7:N9)","v":0}]
[6,"广西钦州琦泉生物质发电有限公司","锅炉运行值班员","负责发电生产调整锅炉DCS控制系统、巡视、检查，维修等工作，并按要求做好记录确保机组安全运行。","校招",3,"大专及以上学历","不限","锅炉专业","政治想想表现好，工作认真负责（进入部门倒班），服从领导安排，能够吃苦耐劳，具有一定的锅炉运行维护等基础知识。","广西钦州市大寺镇",57600,"新能源板块"]
[7,"广西钦州琦泉生物质发电有限公司","汽机运行值班员","负责发电生产调整汽机DCS控制系统、巡视、检查，维修等工作，并按要求做好记录确保机组安全运行。","校招",2,"大专及以上学历","不限","汽机专业","政治想想表现好，工作认真负责（进入部门倒班），服从领导安排，能够吃苦耐劳，具有一定的汽机运行维护等基础知识。","广西钦州市大寺镇",57600,"新能源板块"]
[8,"广西钦州琦泉生物质发电有限公司","电气运行值班员","负责发电生产调整电气DCS控制系统、巡视、检查，维修等工作，并按要求做好记录确保机组安全运行。","校招",3,"大专及以上学历","不限","电气工程及其自动化、电力系统继电保护及其自动化、供用电技术等相关专业","政治想想表现好，工作认真负责（进入部门倒班），服从领导安排，能够吃苦耐劳，具有一定的高低压电工技能。","广西钦州市大寺镇",54000,"新能源板块"]
[9,"广西钦州琦泉生物质发电有限公司","综合检修人员","管路焊接、机务维修设备及电气检修工作。","社招",2,"高中（中专）及以上学历","不限","机电一体化专业","政治想想表现好，工作认真负责，能够吃苦耐劳，要求熟悉机械维修、电焊（持有普焊证能应对抢修及临时加班）及电气工作技能人员，男性年龄不超过50岁。","广西钦州市大寺镇",50400,"新能源板块"]
[null,"广西钦州琦泉生物质发电有限公司 汇总",{"$nulls":3},{"$f":"SUBTOTAL(9,F11:F14)","v":0},{"$nulls":7},{"$f":"SUBTOTAL(9,N11:N14)","v":0}]
[10,"凌云片区","技术员","\n熟悉水电站电气设备的工作原理，了解掌握现场电气设备的各种安装规范，具有较强的专业技能，具备独立组织实施水轮发电机设备检查、维修、安全监测和数据分析能力，有水电站管理或相关的工作经验优先。\n","社招",1,"全日制大专及以上",null,"电气自动化、电气工程、发配电、电力系统及自动化等相关专业","具有良好的沟通协调能力和吃苦耐劳精神。","凌云片区所辖范围内",10,"新能源板块"]
[11,"凌云片区","技术员","负责公司日常电脑技术管理、集控中心及各电站的技术标准制定、监控保护参数审核、实验数据审核分析。指导、解决电站、集控中心运行过程中的技术难题。","社招",1,"全日制大专及以上",null,"计算机、软件编程等相关专业","具有良好的沟通协调能力和吃苦耐劳精神。","凌云片区所辖范围内",10,"新能源板块"]
[null,"凌云片区 汇总",{"$nulls":3},{"$f":"SUBTOTAL(9,F16:F17)","v":0},{"$nulls":7},{"$f":"SUBTOTAL(9,N16:N17)","v":0}]
[12,"恭城片区","出纳","1. 服从公司及部门主任的领导，认真贯彻执行国家的财经法规，上级有关现金管理和银行结算规定和公司财务管理制度，把好收付关；对违反规定的收支，应拒绝办理；有重大问题的要及时向领导汇报，以便采取有效措施进行处理；\n2.负责办理现金收付和银行结算业务；\n3.负责保管公司现金、各种支票、有价证券、有关印章，并严格按规定使用印章。\n4.及时按规定登记现金和银行日记帐，做到日清月结；\n5.根据已登记日记的原始凭证，按时编制现金、银行存款日报表，及时向有关的会计报帐；\n6.及时与银行帐单核对，按月编制银行存款余额调节表和银行存款余额核对清单，做到日记帐账余额与银行对帐单余额调节相符，日记帐余额与总帐余额相符。\n\n","社招",1,"大专及以上","不限","会计学、财务管理及相关专业","户籍为恭城县或者平乐县","恭城县城",null,"新能源","三改定岗定编批复人数（不含班子）221人，截止到9月底，在岗人数为204人，本年底在岗人员将再退休3人，计算到2024年底，在岗人数为201人，缺岗20人。"]
[13,"恭城片区","会计","1.认真执行《会计法》，负责财务管理、会计记账、会计报表等日常事务处理，按时编制月、季、年度会计报表，做到数字真实、计算准确、内容完整；                                                   2.审核各类收支费用票据，并严格执行费用报销和资金付款的工作程序和管理规定，规范公司财务管理；                       \n3.负责按时完成公司税收业务的相关工作，及时缴纳各项税金；\n4.负责会计凭证、账簿、财务报表的整理和存档；\n5.完成领导交办的其他工作。","校招",1,"本科及以上","不限","会计学、财务管理及相关专业","1、户籍为恭城县或者平乐县                            2、  男性优先       ","恭城县城",null,"新能源"]
[14,"恭城片区","电气技术专责","1.负责公司信息自动化等技术工作；负责智能化电站建设、电力通信及信息通讯管理。\n2.负责公司技术发展规划工作，建立完整的信息化技术、设备相关资料及档案的收集、归档、保管工作；\n3.编制信息化设备技术规程及规范，制定公司的有关技术标准；\n4.制订、指导、落实信息化设备、设施维修及维护方案；\n5.熟悉信息化安装、施工现场管理、竣工验收等工作，\n6.对本岗位安全生产工作负责，维护公司利益，服从调度。","社招",2,"大专及以上","不限","发电厂及电力系统、电气工程及其自动化、通信自动化、继电保护等电气类专业","1、户籍为恭城县或者平乐县      ","恭城县城",null,"新能源"]
[15,"恭城片区","发电运行技术员","1.对所管辖的设备安全，经济运行全面负责；\n2.掌握设备的运行情况，做到认真监视和调整，保证设备运行符合规程要求，使设备经常处于良好的运行状态；\n3.及时排除设备故障，处理事故，严格完成重大操作事项，保证运行安全；\n4.认真执行各项规章制度，保证正常操作及事故处理的正确性，严防人身设备事故。","社招",2,"大专及以上","不限","发电厂及电力系统、电气工程及其自动化、通信自动化、继电保护等电气类专业","1、户籍为恭城县或者平乐县      ","恭城片区所辖企业",null,"新能源"]
[16,"恭城片区","运行专责","1.熟悉有关水电站设备设施管理的国家法律法规及集团规定，全面负责设备设施的运行 ；   \n 2.负责水电站水工设施、动力设备及自动化设备设施的巡视检查及调试工作，及时发现故障并进行处理，确保设备设施的正常运行；\n3.负责水电站水库、渠道的水位、库容的监控管理，及时对水电站机电设备运行进行运行调节，确保水电站的正常高效运行；\n4.负责水电站日常隐患排查及治理，确保水电站的安全运行；\n5.负责水电站设备设施运行和维修计划及实施管理；\n6.参与水电站技术改造项目的实施及验收工作。","校招",1,"大专及以上","不限","水利水电工程、水电站动力设备与管理、水利水电建筑工程等相关专业","1、户籍为恭城县或者平乐县            ","恭城县城",null,"新能源"]
[17,"恭城片区","水工技术专责","1.熟悉有关水电站设备设施管理的国家法律法规及集团规定，全面负责设备设施的运行 ；\n  2.负责水电站水工设施、动力设备及自动化设备设施的巡视检查及调试工作，及时发现故障并进行处理，确保设备设施的正常运行；\n3.负责水电站水库、渠道的水位、库容的监控管理，及时对水电站机电设备运行进行运行调节，确保水电站的正常高效运行；\n4.负责水电站日常隐患排查及治理，确保水电站的安全运行；\n5.负责水电站设备设施运行和维修计划及实施管理；\n6.参与水电站技术改造项目的实施及验收工作。","社招",1,"大专及以上","不限","水利水电工程、水电站动力设备与管理、水利水电建筑工程等相关专业","1、户籍为恭城县或者平乐县                             2、  男性优先","恭城县城",null,"新能源"]
[null,"恭城片区 汇总",{"$nulls":3},{"$f":"SUBTOTAL(9,F19:F24)","v":0}]
[18,"恭城片区广西平乐农投能源建设有限公司","燃气安全专责","1、负责安全信息的收集、汇总，并编制安全报表，负责安全生产文件和资料的整理归档工作；\n2、协助部门负责人，组织企业安健环标准体系建设、安全目标分解考核、安全监督检查和安全培训、急救援演练、调查安全事故等工作；\n3、组织本站人员遵守安全生产规章制度和操作规程,检查各岗位安全生产情况,制止和纠正违章行为。\n\n","校招",1,"大专及以上","不限","安全科学与工程类等相关专业","1.户籍为恭城县或者平乐县                                2、  男性优先","桂林市平乐县二塘镇",null,"新能源"]
[null,"恭城片区广西平乐农投能源建设有限公司 汇总",{"$nulls":3},{"$f":"SUBTOTAL(9,F26)","v":0},{"$nulls":7},{"$f":"SUBTOTAL(9,N26)","v":0}]
[19,"龙胜片区","网络管理员","负责公司信息化建设相关规划、设计工作；负责信息系统、通用平台建设、运维和升级等各环节的标准规范；维护和管理公司内部的信息系统，如OA系统、ERP系统等；负责公司内部服务器的管理和维护，包括数据备份和恢复。等工作","校招",1,"大专及以上",null,"计算机应用技术,计算机办公应用,计算机办公自动化,计算机网络技术,网络技术与技术处理,网络技术与信息处理,计算机多媒体技术,多媒体与网络技术,多媒体制作,计算机系统维护,","1.熟练掌握计算机硬件和软件的安装、配置、管理和故障排除 方法。\n2.精通Windows、Linux等操作系统的使用和维护。\n熟悉网络基础知识，包括网络拓扑结构、通信协议、IP地址分配等。\n3.能够配置和管理网络设备 ，如路由器、交换机、防火墙等。\n4.了解网络安全管理，包括监测、记录网络安全状态和网络安全事件，实施安全策略等。","龙胜县城",5.7,"新能源板块"]
[20,"龙胜片区","机械检修员","主要对水电站内的水力机械设备进行检修及维护。","社招",1,"大专及以上",null,"机电一体化技术、机电技术应用","1.35岁以下，具有三年以上水电站检修工作经验，懂水轮发电机组A修工作流程，熟练水轮发电机轴瓦研磨，会操作电站行吊设备；\n2.具有高压电工和特种作业资格证。\n","龙胜县城",5.7,"新能源板块"]
[21,"龙胜片区","秘书","负责来访接待、收发文、会议管理、督办催办、宣传工作等。","校招",1,"大专及以上",null,"汉语,文秘,中国少数民族语言文化、中文，现代文秘","1.文科类专业优先。\n2.熟练掌握办公软件和办公设备的使用。\n3.具备良好的文字功底和语言表达能力。\n4.具备较强的沟通协调能力和人际交往能力。\n5.工作认真负责，细心 耐心，具备较强的责任心和执行力。","龙胜县城",5.7,"新能源板块"]
[22,"龙胜片区","继电保护专责","负责日常的发电运行工作，保证机组、设备在最佳效率和工况下安全运行，及时、迅速的对突发事故进行处理。","校招",1,"大专及以上",null,"发电厂及电力系统,供用电技术,电力系统继电保护与自动化,高压输配电线路施工运行与维护,","1.掌握电气运行、变电站值班与维护、继电保护及自动控制系统等相关专业知识，\n2.能够熟练使用办公软件，具备良好的文字表达能力。\n","龙胜县城",5.7,"新能源板块"]
[23,"龙胜片区","会计","负责具体编制成本、费用、专项资金收支计划和决算，负责资金、物资、资产的日常账务管理和核算，负责收集、编制和保管会计档案，负责进行日常会计事务处理及业务监督等。","校招",1,"大专及以上",null,"财务管理,财务信息管理,会计,会计电算化,会计与统计核算,税务会计、企业财务管理、会计信息管理，大数据与财务管理，大数据与会计，会计与审计","1、持有会计证;\n2、熟悉财务处理程序，熟练财务软件及office办公软件，了解国内企业会计准则，及相关财务、税务、审计法规、政策;\n3、较强的成本管理、风险控制和财务分析的能力;\n4.良好的沟通、协调能力和团队协作精神，能承受较大工作压力。","龙胜县城",5.7,"新能源板块"]
[null,"龙胜片区 汇总",{"$nulls":3},{"$f":"SUBTOTAL(9,F28:F32)","v":0},{"$nulls":7},{"$f":"SUBTOTAL(9,N28:N32)","v":0}]
[24,"广西桂水电力股份有限公司那坡发电分公司","水电站运行员","1、负责水电站的日常发电运行；\n2、负责发现并判断机组主辅设备、升压站、厂变、坝变一般安全隐患；\n3、负责机组主辅设备一般安全措施操作及故障或事故处理；\n4、负责机组及其辅属设备的正常操作、巡查与数据记录；\n5、负责岗位安全，负责厂房、机组主辅设备清洁卫生；","校招或社招",5,"大专及以上",null,"发电厂及电力系统、电气工程及其自动化"," 1、发电厂及电力系统、电气工程及其自动化、电力系统自动化、机电一体化、机械电子工程、能源与动力工程（水动方向）等相关专业；\n2、大专及以上学历，有相关工作经验和操作证优先；\n3、身体健康、责任心强、吃苦耐劳、服从组织安排，有意愿长期在水电站发展。","那坡县各乡镇",6.5,"新能源集团"]
[null,"广西桂水电力股份有限公司那坡发电分公司 汇总",{"$nulls":3},{"$f":"SUBTOTAL(9,F34)","v":0},{"$nulls":7},{"$f":"SUBTOTAL(9,N34)","v":0}]
[25,"广西桂水电力股份有限公司天湖发电分公司","劳资专责","1.负责制定薪酬、福利待遇等薪资方案，组织开展薪酬管理工作。\n2.负责公司员工每月工资、绩效、补助、加班等制表、发放工作。\n3.配合主任负责制定公司绩效管理办法，并组织实施。\n4.负责办理员工退休、退休增资补差核算、移交社区管理等相关工作。\n5.负责公司员工五险一金、企业年金的具体工作。\n6.负责上报有关人事、劳资、薪酬方面的各种报表。\n7.负责军转干部管理具体工作。","校招",1,"大专及以上","无","经济学类、财政学类、审计学类相关专业","1.有一定的书面、口头表达能力，计算机各种软件的操作能力，解决问题、分析判断能力，有保密意识、服务意识。\n2.有较强的逻辑思维能力、沟通能力和责任心，有良好的团队协作精神。","广西全州","6万/年","新能源集团"]
[26,"广西桂水电力股份有限公司天湖发电分公司","电气值班员","1.严格遵守巡视检查设备制度，按规定对各种设备进行巡视检查，对发现的设备缺陷和异常情况及时向值长和检修人员汇报，并积极配合处理。\n2.正确执行值长下达的操作命令，在监护人的监护下进行倒闸操作和迅速处理设备故障，并做好相关记录。\n3.严格执行“两票三制”，按规定办理各种工作票、操作票。\n4.负责填写运行日志，确保数据真实准确。\n5.利用科学的运行方式，努力降低厂用电，保证设备在最佳的状态下运行。\n6.详细记录对本值管辖设备发生故障，并参加有关故障、事故的调查。\n7.协助配合电站各项检查资料的汇总、整理、上报工作。\n8.认真做好设备、厂区的清洁卫生。\n9.协助有关领导及职能小组开展各种工作。","校招",1,"大专及以上","无","电气、电子及自动化类","1.熟知电气设备、电力系统、继电保护等知识。\n2.熟悉电力工业技术管理法规，掌握电力工业安全生产规章制度。\n3.具有独立操作，正确判断、处理事故及异常情况能力。\n4.有电力相关证书者优先。","广西全州","6万/年","新能源集团"]
[null,"广西桂水电力股份有限公司天湖发电分公司 汇总",{"$nulls":3},{"$f":"SUBTOTAL(9,F36:F37)","v":0},{"$nulls":7},{"$f":"SUBTOTAL(9,N36:N37)","v":0}]
[27,"广西桂水电力股份有限公司灌阳发电分公司","水利水电工程智能管理专责","1.负责电站、水库智能化管理系统的建设与实施。\n2.负责电站、水库的控制系统设计、调试和运行维护工作。\n3.负责电站智能控制系统的现场安装、调试、维护和故障排除等工作。\n4.负责电站的运行管理、数据分析和故障诊断等工作。\n5.制定和修订智能管理系统的相关制度、流程和规范等文件资料。","校招",1,"大专及以上","无","电气、电子及自动化类","1.掌握电站、水库智能控制的基本原理、基本原理和方法，熟练掌握相关软件的操作技能，具备电气自动化相关专业背景。\n2.有较强的逻辑思维能力、沟通能力和责任心，有良好的团队协作精神。","广西灌阳","5万/年","新能源集团"]
[null,"广西桂水电力股份有限公司灌阳发电分公司 汇总",{"$nulls":3},{"$f":"SUBTOTAL(9,F39)","v":0},{"$nulls":7},{"$f":"SUBTOTAL(9,N39)","v":0}]
[28,"广西桂水电力股份有限公司天湖发电分公司","检修专责","1.负责公司新能源发电技术和自动化系统的管理工作。\n2.负责公司新能源设备的安装调试、日常维护、检修等工作。\n3.负责建立、健全公司各种技术资料的整理归档、统计、分析及管理等，优化和完善现有技术在生产过程中的应用。\n4.负责公司技术标准制定，制定并完善技术操作规程，实施技术标准管理。\n5.协助负责智能化电站建设工作的组织实施、推进。","社招",1,"本科及以上","理学学士","电气、电子及自动化类","1.熟悉数字电路、模拟电路等专业知识，熟练掌握自动化控制系统。\n2.有一定的自动化系统的现场调试和故障排除能力。\n3.有较强的逻辑思维能力、沟通能力和责任心，有良好的团队协作精神。","广西全州","6万/年","新能源集团"]
[null,"广西桂水电力股份有限公司天湖发电分公司 汇总",{"$nulls":3},{"$f":"SUBTOTAL(9,F41)","v":0},{"$nulls":7},{"$f":"SUBTOTAL(9,N41)","v":0}]
[29,"宜州片区","发电运行员","1.对所管辖的设备安全，经济运行全面负责；\n2.掌握设备的运行情况，做到认真监视和调整，保证设备运行符合规程要求，使设备经常处于良好的运行状态；\n3.及时排除设备故障，处理事故，严格完成重大操作事项，保证运行安全；\n4.认真执行各项规章制度，保证正常操作及事故处理的正确性，严防人身设备事故。","校招或社招均可",4,"全日制大专或以上",null,"电气、电子及自动化类、水利类、能源动力及工程热物理类","1.熟知电气设备、电力系统、继电保护等知识。\n2.熟悉电力工业技术管理法规，掌握电力工业安全生产规章制度。\n3.熟悉主要经济指标统计方法和设备可靠性管理的术语。\n4.具备相应班组管理知识，具有独立操作，正确判断、处理事故及异常情况能力。\n5.有电力相关证书者优先。","宜州片区"]
[30,"宜州片区","发电运行员","能胜任生技部对该岗位主要要求懂工程造价、懂水工专业。","社招",1,"全日制大专或以上","不限","土木类、建筑类","1.负责电站工程施工组织管理；\n2.负责图纸会审、技术核定；\n3.负责水电站渠道、水流的监测，及时调节排水面积，确保水电站的正常运营；\n4.负责水电站水利水电工程的运行和维护。\n5.完成领导交办的其他工作任务。","宜州片区"]
[31,"宜州片区","信息技术员","1.负责公司信息自动化等技术工作；负责智能化电站建设、电力通信及信息通讯管理。\n2.负责公司技术发展规划工作，建立完整的信息化技术、设备相关资料及档案的收集、归档、保管工作；\n3.编制信息化设备技术规程及规范，制定公司的有关技术标准；\n4.制订、指导、落实信息化设备、设施维修及维护方案；\n5.熟悉信息化安装、施工现场管理、竣工验收等工作，\n6.对本岗位安全生产工作负责，维护公司利益，服从调度。","社招",1,"大学本科及以上","不限","计算机科学与技术类及电气、电子及自动化类","1.30周岁以下，身体健康。\n2.熟悉发电行业机械、电气设备管理和维护，具备生产技术管理、生产经营计划和管理能力。\n3.能够胜任公司系统内电气工程及其自动化系统维护、编程等工作。\n4.具有良好的办公软件和信息化系统操作能力。\n5.有一定的分析问题和解决问题的能力。","宜州片区"]
[32,"宜州片区","财务","1. 服从公司及部门主任的领导，认真贯彻执行国家的财经法规，上级有关现金管理和银行结算规定和公司财务管理制度，把好收付关；对违反规定的收支，应拒绝办理；有重大问题的要及时向领导汇报，以便采取有效措施进行处理；\n2.负责办理现金收付和银行结算业务；\n3.负责保管公司现金、各种支票、有价证券、有关印章，并严格按规定使用印章；\n4.及时按规定登记现金和银行日记帐，做到日清月结；\n5.根据已登记日记的原始凭证，按时编制现金、银行存款日报表，及时向有关的会计报帐；\n6.及时与银行帐单核对，按月编制银行存款余额调节表和银行存款余额核对清单，做到日记帐账余额与银行对帐单余额调节相符，日记帐余额与总帐余额相符。","社招",1,"本科及以上","学士及以上","会计学类","1.熟练掌握财务和资金管理业务知识，熟悉国家有关财经政策、会计准则及统计知识。\n2.具有良好的团队协作意识、较强的分析问题和解决问题能力，能熟练使用财务软件和信息化系统开展工作。","融水"]
[null,"宜州片区 汇总",{"$nulls":3},{"$f":"SUBTOTAL(9,F43:F46)","v":0},{"$nulls":7},{"$f":"SUBTOTAL(9,N43:N46)","v":0}]
[33,"广西水利电业集团新疆克州水利发电有限公司","文秘","负责公司发文审核，文电收发、拟办、登记、传递；相关会议的组织、材料准备工作；公司重大会议的会议记录、录像（音）、资料整理及会议纪要等工作；文件起草、发文审核、工作总结、工作安排、报告、大事记编写等工作；对会议重要决策事项及领导批办事项的落实情况进行跟踪、监督、反馈和协调；公司经营管理信息的报送、更新工作；对外的宣传对接和公关应对工作；公司档案资料的收集，整理，保管和提供借阅工作；协助做好其他办公室工作。","校招",1,"本科及以上","不限","秘书,文秘,文秘学,现代秘书,现代文秘,文秘与办公自动化,文秘教育,商务秘书,中文教育,秘书教育,汉语言文学教育，汉语言,","1.身心健康，能吃苦耐劳，服从安排，能够适应本岗位工作，具有较强的文字功底，能够熟练操作使用相关的办公软件。\n2.有良好的表达能力，协调能力好。","新疆克州阿克陶县奥依塔克镇",14,"发电板块"]
[34,null,"水工技术员","负责水电站及大坝的水工建筑、隧洞引水工程等水工设施检查及维护管理、安全监测设备设施维护管理等工作，落实完成相关制度、资料的记录整理工作。","校招",1,"本科及以上","不限","水利水电工程、水利水电工程管理、水利水电建筑工程等相关专业","1.遵守宪法和法律法规，品行端正，诚实守信，无违规违纪行为及不良记录。2.身体健康，符合国家《公务员录用体检通用标准（试行）》中规定的健康体检标准及行","新疆克州阿克陶县奥依塔克镇",13.5,"发电板块"]
[35,null,"自动化技术员","负责水电站机电设备、电力监控系统、集控中心监控系统、通讯系统自动化设备的日常检修及维护管理等工作，落实完成相关设备管理制度、资料的记录整理工作。","校招",1,"本科及以上","不限","电力系统及其自动化、水电站机电设备与自动化、电气工程及其自动化、能源工程及自动化、发电厂及电力系统、继电保护等相关专业","1.遵守宪法和法律法规，品行端正，诚实守信，无违规违纪行为及不良记录。2.身体健康，符合国家《公务员录用体检通用标准（试行）》中规定的健康体检标准及行","新疆克州阿克陶县奥依塔克镇",13.5,"发电板块"]
[null,"广西水利电业集团新疆克州水利发电有限公司 汇总",{"$nulls":3},{"$f":"SUBTOTAL(9,F48:F50)","v":0},{"$nulls":7},{"$f":"SUBTOTAL(9,N48:N50)","v":0}]
[36,"广西桂水电力股份有限公司资源发电分公司","办公室文秘","1.应届毕业，身体健康，女生优先；                                                                                                                                    2.熟悉办公室行政管理知识和工作流程，熟悉公文写作，熟练运行office等办公软件；                                                                                           3.有较强的书面语言、文字表达能力和口头表达能力，能独立完成起草公司综合性文字材料能力；                                                                              4. 具有阳光、自信等亲和力，诚恳、敬业、责任心强，为人热沈、勇于担当，办事专心细致，擅长沟通协调、沟通表达和团队协作能力。                                                                                                                                                                                                                                                                                             ","校招",1,"大专","不限","教育学类","1.政治思想好，身体健康，工作积极认真，能吃苦耐劳；                                                                                    2.熟悉企业文化建设、企业宣传工作的相关知识，熟悉企业文化建设及企业宣传基本流程。                                                                                     3.具有良好的沟通能力、执行力、语言表达和文字表达能力，有较强的学习能力，能够独立完成各项常规性工作，具有良好的办公软件和信息化系统操作能力。","资源县县城","按《广西农投新能源集团有限公司所属各企业中层及以下员工薪酬管理办法》执行","新能源板块"]
[37,"广西桂水电力股份有限公司资源发电分公司","少人值守后台管理岗位","1. 应届毕业，身体健康；                                                                                                                                                           2.熟悉发电设备原理和运行操作及维护能力，基本掌握设备的运行情况，保证设备运行符合规程要求，使设备经常处于良好的运行状态；\n3.及时排除设备故障，处理事故，严格完成重大操作事项，保证运行安全；\n4.认真执行各项规章制度，保证正常操作及事故处理的正确性，严防人身设备事故。","校招",1,"大专","不限","电力系统自动化技术","1.政治思想好，身体健康，工作积极认真，能吃苦耐劳；                                                                                                 2.具有高压或低压特种作业操作证；                                                                                   3.具有好的语言发达能力和人际关系沟通能力；                                     4.熟练掌握电力系统自动化技术操作系统的管理、维护；                                                                                   5.具有良好执行力，有较强的学习能力，能够独立完成各项常规性工作，具有较好的办公软件和信息化系统操作能力。","资源县各乡镇","按《广西农投新能源集团有限公司所属各企业中层及以下员工薪酬管理办法》执行","新能源板块"]
[38,"广西桂水电力股份有限公司资源发电分公司","生产技术巡查岗位","1. 应届毕业，身体健康，男生优先；                                                                                                                                                                               2.熟悉发电设备原理和运行操作及维护能力，基本掌握设备的运行情况，保证设备运行符合规程要求，使设备经常处于良好的运行状态；\n3.及时排除设备故障，处理事故，严格完成重大操作事项，保证运行安全；\n4.认真执行各项规章制度，保证正常操作及事故处理的正确性，严防人身设备事故。","校招",1,"大专","不限","建筑工程技术                               （要求为电力学院毕业）","1.政治思想好，身体健康，工作积极认真，能吃苦耐劳；                                                                                                                                                              2.具有好的语言发达能力和人际关系沟通能力；                                     3.熟练掌握建筑工程技术操作系统的管理、维护；                                                                                   4.具有良好执行力，有较强的学习能力，能够独立完成各项常规性工作，具有较好的办公软件和信息化系统操作能力。","资源县各乡镇","按《广西农投新能源集团有限公司所属各企业中层及以下员工薪酬管理办法》执行","新能源板块"]
[39,"广西桂水电力股份有限公司资源发电分公司","项目工程管理员","1..身体健康，男性年龄在35岁周岁以下、女性在30周岁以下（截止2025年12月31日止），男士优先；                                                                                                                    2.熟悉水电站工程设计、预算、结算、验收等管理工作；\n3.具有良好的办公软件操作能力和写作能力；\n4.具备良好的沟通协调能力和抗压能力。","社招",1,"大专","不限","工程造价、工程管理专业（要求为电力学院毕业）","1.按照公司相关审核标准及工程要求标准，负责对设计施工图、报价清单、材料清单等资料进行报审；\n2.完善部门预决算的项目成本评估体系建立；\n3.负责相关项目提交的技术变更和签证单、工程竣工财务决算的审计工作；\n4.负责工程决算期间跟进工程款付款方面的沟通协调问题、催收账款等。","资源县各乡镇","按《广西农投新能源集团有限公司所属各企业中层及以下员工薪酬管理办法》执行","新能源板块"]
[40,"广西桂水电力股份有限公司资源发电分公司","发电运行岗位","1.身体健康，男性年龄在35岁周岁以下、女性在30周岁以下（截止2025年12月31日止）；                                                                                                                    2.熟悉发电设备原理和运行操作及维护能力，基本掌握设备的运行情况，保证设备运行符合规程要求，使设备经常处于良好的运行状态；\n3.及时排除设备故障，处理事故，严格完成重大操作事项，保证运行安全；\n4.认真执行各项规章制度，保证正常操作及事故处理的正确性，严防人身设备事故。","社招",1,"大专","不限","电气设备应用与维护","1.政治思想好，身体健康，工作积极认真，能吃苦耐劳；                                                                                                                                                                                          2.具有好的语言发达能力和人际关系沟通能力；                                     3.熟练掌握电气设备应用与维护操作系统的管理、维护；                                                                                   4.具有良好执行力，有较强的学习能力，能够独立完成各项常规性工作，具有较好的办公软件和信息化系统操作能力。","资源县各乡镇","按《广西农投新能源集团有限公司所属各企业中层及以下员工薪酬管理办法》执行","新能源板块"]
[null,"广西桂水电力股份有限公司资源发电分公司 汇总",{"$nulls":3},{"$f":"SUBTOTAL(9,F52:F56)","v":0},{"$nulls":7},{"$f":"SUBTOTAL(9,N52:N56)","v":0}]
[41,"广西桂水电力股份有限公司荔浦发电分公司","会计","1.负责往来帐核算、固定资产、原材料、产成品、成本计算、销售费用、管理费用、财务费用核算；\n2.负责收入、支出、应交税金、应付职工薪酬核算；办理有关交纳各种税款、费用业务；\n3.负责办理与财务有关的证件业务；负责配合上级部门有关税务、财务、审计的审查；\n4.负责配合上级部门有关税务、财务、审计的审查；审核报销的原始凭证、编制会计凭证、编制财务报表。","校招",1,"大学本科及以上","不限","会计学类","1.有一定的书面、口头表达能力，电脑应用能力，解决问题、分析判断能力。                                                            2.有责任心、纪律性、主动性、有团队精神、保密意识、服务意识。                                                                           3.身体健康、吃苦耐劳，服从安排，具有较强的责任心、较强的沟通协调能力和良好的团队合作精神。","荔浦市区",7,"新能源集团"]
[42,"广西桂水电力股份有限公司荔浦发电分公司","发电运行人员","1.对所管辖的设备安全，经济运行全面负责；\n2.掌握设备的运行情况，做到认真监视和调整，保证设备运行符合规程要求，使设备经常处于良好的运行状态；\n3.及时排除设备故障，处理事故，严格完成重大操作事项，保证运行安全；\n4.认真执行各项规章制度，保证正常操作及事故处理的正确性，严防人身设备事故。","校招",2,"大专及以上","不限","电气、电子及自动化类、计算机科学与技术类","1.熟知电气设备、电力系统、继电保护等知识。                                                    2.熟悉电力工业技术管理法规，掌握电力工业安全生产规章制度。                                                                              3.熟悉主要经济指标统计方法和设备可靠性管理的术语。                                                              4.具备相应班组管理知识，具有独立操作，正确判断、处理事故及异常情况能力。                                                          5.身体健康、吃苦耐劳，服从安排，具有较强的责任心、较强的沟通协调能力和良好的团队合作精神。                                                        6.有电力相关证书者优先。","荔浦市乡镇",7,"新能源集团"]
[43,"广西桂水电力股份有限公司荔浦发电分公司","人力资源管理","1.负责公司各种会议组织、会文处理、事务接待等日常工作，负责起草公司的公文、规章制度、会议纪要、大事记等综合性文字及校对工作；\n2.参与公司企业管理和法律事务、宣传、企业文化、精神文明等工作； \n3.负责管理公司广书、文印、信息、档案、外事、接待及部门考核等日常工作。                                         \n","校招",1,"大专及以上","不限","教育学类","1.熟悉办公室行政管理知识和工作流程，熟悉公文写作，熟练运用office等办公软件。\n2.工作细致认真，责任心强，具备较强的书面和口头表达能力。                                                                              3.有一定的文字表达能力，熟悉教育培训等相关工作。                                                                                       3.身体健康、吃苦耐劳，服从安排，具有较强的责任心、较强的沟通协调能力和良好的团队合作精神。","荔浦市区",7,"新能源集团"]
[44,"广西桂水电力股份有限公司荔浦发电分公司","信息技术员","1.负责公司信息自动化等技术工作；负责智能化电站建设、电力通信及信息通讯管理。\n2.负责公司技术发展规划工作，建立完整的信息化技术、设备相关资料及档案的收集、归档、保管工作；\n3.编制信息化设备技术规程及规范，制定公司的有关技术标准；\n4.制订、指导、落实信息化设备、设施维修及维护方案；\n5.熟悉信息化安装、施工现场管理、竣工验收等工作，\n6.对本岗位安全生产工作负责，维护公司利益，服从调度。","社招",2,"大学本科及以上","不限","电气、电子及自动化类、计算机科学与技术类","130周岁以下，有3年及以上相关工作经历。\n2.熟悉发电行业机械、电气设备管理和维护，具备生产技术管理、生产经营计划和管理能力。\n3.能够胜任公司系统内电气工程及其自动化系统维护、编程等工作。\n4.具有良好的办公软件和信息化系统操作能力。\n5.有一定的分析问题和解决问题的能力。                                     6..身体健康，吃苦耐劳，服从安排，具有较强的责任心、较强的沟通协调能力和良好的团队合作精神。","荔浦市乡镇",7,"新能源集团"]
[45,"广西桂水电力股份有限公司荔浦发电分公司","行政综合员","1.负责公司各种会议组织、会文处理、事务接待等日常工作；                          2.负责起草公司的公文、规章制度、会议纪要、大事记等综合性文字及校对工作；                                                                                                             3.参与公司企业管理和法律事务、宣传、企业文化、精神文明等工作；负责公司新媒体平台内容的制作、运营管理等；                                                          4.负责管理公司广书、文印、信息、档案、外事、接待及部门考核等日常工作。                                         \n","社招",1,"大学本科及以上","不限","文秘、行政管理、新闻学、广告学相关专业","1.中共党员，35周岁以下，2年及以上相关工作经验。                                                                           2.具有较强的文字功底和公文写作能力，能独立起草完成日常公文及综合文字材料、汇报材料等；能熟练使用办公软件和信息化系统开展工作。有广告、视频拍摄、制作经验者优先。                                                                                    3.身体健康、吃苦耐劳，服从安排，具有较强的责任心、较强的沟通协调能力和良好的团队合作精神。","荔浦市区",7,"新能源集团"]
[null,"广西桂水电力股份有限公司荔浦发电分公司 汇总",{"$nulls":3},{"$f":"SUBTOTAL(9,F58:F62)","v":7},{"$nulls":7},{"$f":"SUBTOTAL(9,N58:N62)","v":0}]
[46,"蒙山片区","发电运行","1.对所管辖的设备安全，经济运行全面负责；\n2.掌握设备的运行情况，做到认真监视和调整，保证设备运行符合规程要求，使设备经常处于良好的运行状态；\n3.及时排除设备故障，处理事故，严格完成重大操作事项，保证运行安全；\n4.认真执行各项规章制度，保证正常操作及事故处理的正确性，严防人身设备事故。","校招/社招",2,"大专及以上",null,"发电厂及电力系统、电力系统自动化等电气、电子及自动化类专业","工作认真负责、积极主动，服从安排。具备良好的职业操守、团队合作精神，具备较强的问题解决能力和判断力。","蒙山片区",5,"发电"]
[47,"蒙山片区","技术（运行）岗位","工程项目的成本估算、预算编制、成本控制及造价分析；参与工程合同的制定与审查等；熟悉设计施工图纸、施工方案等，熟练掌握EXCEL办公软件、CAD绘图软件；设备运行。","校招/社招",3,"大专及以上",null,"水利水电工程、工程造价等专业","工作认真负责、积极主动，服从安排。具备良好的沟通能力、职业操守、团队合作精神，具备较强的问题解决能力和判断力。","蒙山片区",6,"发电"]
[48,"蒙山片区","运行技术岗位","各电站的技术标准制定、监控保护参数审核、实验数据审核分析；技改规划、大修计划、智能化电站建设、电力通信及信息通讯管理等。","校招/社招",1,"大专及以上",null,"大数据技术等计算机科学与技术类专业毕业","工作认真负责、积极主动，服从安排。具有较强的复杂事故的分析、判断、处理的能力。具有良好的办公软件和信息化系统操作能力。","蒙山片区",6,"发电"]
[49,"蒙山片区","综合会计","负责企业预算工作、资金工作、固定资产管理（建账、折旧、报废等）、税务，核算各项成本及费用，监督各部门的费用支出，加强企业成本控制、审核会计付款凭证和会计报表、会计信息管理等工作。","校招/社招",1,"大专及以上",null,"财务管理、财务信息管理、会计电算化等会计学类","工作认真，积极主动，服从安排。严格执行保密制度，熟练掌握会计电算化操作。","蒙山片区",6,"发电"]
[null,"蒙山片区 汇总",{"$nulls":3},{"$f":"SUBTOTAL(9,F64:F67)","v":0},{"$nulls":7},{"$f":"SUBTOTAL(9,N64:N67)","v":0}]
[50,"藤县片区","发电运行员","1.对所管辖的设备安全，经济运行全面负责；\n2.掌握设备的运行情况，做到认真监视和调整，保证设备运行符合规程要求，使设备经常处于良好的运行状态；\n3.及时排除设备故障，处理事故，严格完成重大操作事项，保证运行安全；\n4.认真执行各项规章制度，保证正常操作及事故处理的正确性，严防人身设备事故。","不限",2,"大专及以上","不限","电子设备与运行管理、发电厂及电力系统、电力系统继电保护与自动化,、电力系统自动化技术,电力系统继电保护与自动化技术、水电站机电设备与自动化等电气类专业","优先考虑藤县本地人员","藤县各乡镇",null,"新能源"]
[null,"藤县片区 汇总",{"$nulls":3},{"$f":"SUBTOTAL(9,F69)","v":0},{"$nulls":7},{"$f":"SUBTOTAL(9,N69)","v":0}]
[51,"广西桂水电力股份有限公司西林发电分公司","技术主管","\n\n1.负责公司信息自动化等技术工作；负责集控中心及智能化电站电力通信及信息通讯管理。\n2.负责公司技术发展规划工作，建立完整的信息化技术、设备相关资料及档案的收集、归档、保管工作；\n3.编制信息化设备技术规程及规范，制定公司的有关技术标准；\n4.制订、指导、落实信息化设备、设施维修及维护方案；\n5.熟悉信息化安装、施工现场管理、竣工验收等工作，\n6.对本岗位安全生产工作负责，维护公司利益，服从调度。\n7.精通局域网的维护和网络安全知识，能够熟悉网络设备的基本维护和故障处理。\n8.熟悉和掌握各种计算机软硬件，能够独立安装、调试及故障排除。","校招",1,"本科","工学学士","电气工程及其自动化,智能电网信息工程,电气工程与智能控制专业，计算机网络、通信工程","1.30周岁以下，身体健康。\n2.熟悉发电行业通信网络自动化知识、电气设备管理和维护，具备生产技术管理、生产经营计划和管理能力。\n3.能够胜任公司系统内通信网络、电气工程及其自动化系统维护、编程等工作。\n4.具有良好的办公软件和信息化系统操作能力。\n5.有一定的分析问题和解决问题的能力。","西林片区",null,"新能源","集控中心"]
[52,"广西桂水电力股份有限公司西林发电分公司","技术专责","熟悉和掌握水电站自动化系统维护、维修、检测、调试及设备管理；水电站智能化改造项目管理及技术培训等业务。","校招",6,"本科",null,"电气、电子及自动化类","身体健康，专业成绩优秀，熟悉水电站运行、维护检测、调试及设备管理，水电站智能化改造项目管理及技术培训等。","西林片区",null,"新能源","生产技术部"]
[53,"广西桂水电力股份有限公司西林发电分公司","法务专责","能熟悉运用公司法、经济法、劳动法及其它国家法律法规，熟悉司法诉讼流程，能独立完成法律文书的起草工作，能有效应对企业面对的司法案件等。","社招\n（有司法工作相关经历者优先）",1,"大专及以上学历（西林本地应聘者优先）","法学学士","法学类","35周岁以下，政治面貌优良，身体健康，服从安排。具有一定的司法相关工作经历。","西林片区办公室",null,"新能源","办公室"]
[null,"广西桂水电力股份有限公司西林发电分公司 汇总",{"$nulls":3},{"$f":"SUBTOTAL(9,F71:F73)","v":0},{"$nulls":7},{"$f":"SUBTOTAL(9,N71:N73)","v":0}]
[null,"总计",{"$nulls":3},{"$f":"SUBTOTAL(9,F3:F73)","v":7},{"$nulls":7},{"$f":"SUBTOTAL(9,N3:N73)","v":0}]
[]
[1,"广西桂水电力股份有限公司岑溪发电分公司","综合会计","负责核算企业各项成本及费用，监督各部门的费用支出，加强企业成本控制、审核会计付款凭证和会计报表、会计信息管理，配合主任完成公司预算管理、资金管理、产权（资产）管理、税务管理、价格管理等工作","社招",1,"大学专科及以上",null,"财务会计、金融等相关专业","掌握并能正确贯彻执行有关的财经方针、政策和财务会计法规制度，较系统地掌握财务会计基础理论和专业知识。","岑溪",3.6,"新能源"]
[2,"广西桂水电力股份有限公司岑溪发电分公司","电站电气自动化技术管理","负责各电站的技改规划、大修计划、智能化电站建设、电力通信及信息通讯管理、各电站电气自动化技术标准制定、监控保护参数审核、实验数据审核分析及维护。","校招",2,"大学专科及以上",null,"电力系统自动化等相关专业","熟悉《电力法》及安全生产有关法规，掌握安全生产知识","岑溪",3.6,"新能源"]

{"sheet":"2025年招聘计划（校招）","index":1,"n_rows":38,"n_cols":14,"rows_kept":38,"hidden":true,"merged":[[0,0,0,12],[1,0,2,0],[1,1,2,1],[1,2,2,2],[1,3,2,3],[1,4,2,4],[1,5,2,5],[1,6,1,9],[1,10,2,10],[1,11,2,11],[1,12,2,12],[1,13,2,13],[9,13,11,13],[21,1,23,1]]}
["新能源集团2025年招聘岗位需求表"]
["序号","招聘单位","招聘岗位","岗位描述","招聘形式\n（校招/社招）","招聘人数","招聘条件",{"$nulls":3},"工作地点","薪资待遇\n（万元/年）","板块","备注"]
[{"$nulls":6},"学历","学位","专业","其他任职条件"]
[1,"广西桂水电力股份有限公司龙州发电分公司","技术岗","负责各类工程项目的预算编制、成本控制、招投标及结算审核。需准确计算工程量与造价，监控项目成本，参与招投标及合同管理。","校招",1,"本科","无","土木工程专业","具备良好的沟通协调能力和团队合作精神，工作认真负责，注重细节，有较强的责任心。","龙州片区",5.5]
[2,"广西桂水电力股份有限公司龙州发电分公司","技术岗","主要负责公司集控系统及网络的维护、技术支持、数据库管理及网络管理等工作。维护现有系统稳定运行，确保安全完整。","校招",1,"本科","无","计算机科学与技术类","具备良好的学习能力和创新精神，能够快速掌握新技术，有较强的问题解决能力和团队合作精神。","龙州片区",5.5]
[3,"广西桂水电力股份有限公司大新发电分公司","工程管理员","1.按照公司相关审核标准及工程要求标准，负责对设计施工图、报价清单、材料清单等资料进行报审；\n2.完善部门预决算的项目成本评估体系建立；\n3.负责相关项目提交的技术变更和签证单、工程竣工财务决算的审计工作；\n4.负责工程决算期间跟进工程款付款方面的沟通协调问题、催收账款等。","校招",1,"本科及以上","不限","土木工程专业","1.应届毕业生，全日制本科及以上学历；\n2.熟悉水电建筑工程设预算、结算、验收等管理工作。\n3.具有良好的建筑工程软件操作能力。\n4.具备良好的沟通协调能力和抗压能力。","大新县",6,"能源板块"]
[4,"广西钦州琦泉生物质发电有限公司","锅炉运行值班员","负责发电生产调整锅炉DCS控制系统、巡视、检查，维修等工作，并按要求做好记录确保机组安全运行。","校招",3,"大专及以上学历","不限","锅炉专业（专业分类目录无该专业）\n修改为：能源动力及工程热物理类专业","政治想想表现好，工作认真负责（进入部门倒班），服从领导安排，能够吃苦耐劳，具有一定的锅炉运行维护等基础知识。","广西钦州市大寺镇",57600,"新能源板块"]
[5,"广西钦州琦泉生物质发电有限公司","汽机运行值班员","负责发电生产调整汽机DCS控制系统、巡视、检查，维修等工作，并按要求做好记录确保机组安全运行。","校招",2,"大专及以上学历","不限","汽机专业（专业分类目录无该专业）\n修改为：能源动力及工程热物理类专业","政治想想表现好，工作认真负责（进入部门倒班），服从领导安排，能够吃苦耐劳，具有一定的汽机运行维护等基础知识。","广西钦州市大寺镇",57600,"新能源板块"]
[6,"广西钦州琦泉生物质发电有限公司","电气运行值班员","负责发电生产调整电气DCS控制系统、巡视、检查，维修等工作，并按要求做好记录确保机组安全运行。","校招",3,"大专及以上学历","不限","电气工程及其自动化、电力系统继电保护及其自动化、供用电技术等相关专业","政治想想表现好，工作认真负责（进入部门倒班），服从领导安排，能够吃苦耐劳，具有一定的高低压电工技能。","广西钦州市大寺镇",54000,"新能源板块"]
[7,"广西桂水电力股份有限公司恭城发电分公司","会计","1.认真执行《会计法》，负责财务管理、会计记账、会计报表等日常事务处理，按时编制月、季、年度会计报表，做到数字真实、计算准确、内容完整；\n2.审核各类收支费用票据，并严格执行费用报销和资金付款的工作程序和管理规定，规范公司财务管理；                       \n3.负责按时完成公司税收业务的相关工作，及时缴纳各项税金；\n4.负责会计凭证、账簿、财务报表的整理和存档；\n5.完成领导交办的其他工作。","校招",1,"本科及以上","不限","会计学、财务管理及相关专业","1、户籍为恭城县或者平乐县                            2、  男性优先       ","恭城县城",null,"新能源"]
[8,"广西桂水电力股份有限公司恭城发电分公司","运行专责","1.熟悉有关水电站设备设施管理的国家法律法规及集团规定，全面负责设备设施的运行 ；                                                                                                       2.负责水电站水工设施、动力设备及自动化设备设施的巡视检查及调试工作，及时发现故障并进行处理，确保设备设施的正常运行；\n3.负责水电站水库、渠道的水位、库容的监控管理，及时对水电站机电设备运行进行运行调节，确保水电站的正常高效运行；\n4.负责水电站日常隐患排查及治理，确保水电站的安全运行；\n5.负责水电站设备设施运行和维修计划及实施管理；                                     6.参与水电站技术改造项目的实施及验收工作。","校招",1,"大专及以上","不限","水利水电工程、水电站动力设备与管理、水利水电建筑工程等相关专业","1、户籍为恭城县或者平乐县            ","恭城县城",null,"新能源"]
[9,"恭城片区-广西平乐农投能源建设有限公司","燃气安全专责","1、负责安全信息的收集、汇总，并编制安全报表，负责安全生产文件和资料的整理归档工作；\n2、协助部门负责人，组织企业安健环标准体系建设、安全目标分解考核、安全监督检查和安全培训、急救援演练、调查安全事故等工作；\n3、组织本站人员遵守安全生产规章制度和操作规程,检查各岗位安全生产情况,制止和纠正违章行为。\n\n","校招",1,"大专及以上","不限","安全科学与工程类等相关专业","1.户籍为恭城县或者平乐县                                2、  男性优先","桂林市平乐县二塘镇",null,"新能源"]
[10,"龙胜片区-广西桂水电力股份有限公司龙胜发电分公司","网络管理员","负责公司信息化建设相关规划、设计工作；负责信息系统、通用平台建设、运维和升级等各环节的标准规范；维护和管理公司内部的信息系统，如OA系统、ERP系统等；负责公司内部服务器的管理和维护，包括数据备份和恢复。等工作","校招",1,"大专及以上",null,"计算机应用技术,计算机办公应用,计算机办公自动化,计算机网络技术,网络技术与技术处理,网络技术与信息处理,计算机多媒体技术,多媒体与网络技术,多媒体制作,计算机系统维护,","1.熟练掌握计算机硬件和软件的安装、配置、管理和故障排除 方法。\n2.精通Windows、Linux等操作系统的使用和维护。\n熟悉网络基础知识，包括网络拓扑结构、通信协议、IP地址分配等。\n3.能够配置和管理网络设备 ，如路由器、交换机、防火墙等。\n4.了解网络安全管理，包括监测、记录网络安全状态和网络安全事件，实施安全策略等。","龙胜县城",5.7,"新能源板块"]
[11,"龙胜片区-广西桂水电力股份有限公司龙胜发电分公司","秘书","负责来访接待、收发文、会议管理、督办催办、宣传工作等。","校招",1,"大专及以上",null,"汉语,文秘,中国少数民族语言文化、中文，现代文秘","1.文科类专业优先。\n2.熟练掌握办公软件和办公设备的使用。\n3.具备良好的文字功底和语言表达能力。\n4.具备较强的沟通协调能力和人际交往能力。\n5.工作认真负责，细心 耐心，具备较强的责任心和执行力。","龙胜县城",5.7,"新能源板块"]
[12,"龙胜片区-广西桂水电力股份有限公司龙胜发电分公司","继电保护专责","负责日常的发电运行工作，保证机组、设备在最佳效率和工况下安全运行，及时、迅速的对突发事故进行处理。","校招",1,"大专及以上",null,"发电厂及电力系统,供用电技术,电力系统继电保护与自动化,高压输配电线路施工运行与维护,","1.掌握电气运行、变电站值班与维护、继电保护及自动控制系统等相关专业知识，\n2.能够熟练使用办公软件，具备良好的文字表达能力。\n","龙胜县城",5.7,"新能源板块"]
[13,"龙胜片区-广西桂水电力股份有限公司龙胜发电分公司","会计","负责具体编制成本、费用、专项资金收支计划和决算，负责资金、物资、资产的日常账务管理和核算，负责收集、编制和保管会计档案，负责进行日常会计事务处理及业务监督等。","校招",1,"大专及以上",null,"财务管理,财务信息管理,会计,会计电算化,会计与统计核算,税务会计、企业财务管理、会计信息管理，大数据与财务管理，大数据与会计，会计与审计","1、持有会计证;\n2、熟悉财务处理程序，熟练财务软件及office办公软件，了解国内企业会计准则，及相关财务、税务、审计法规、政策;\n3、较强的成本管理、风险控制和财务分析的能力;\n4.良好的沟通、协调能力和团队协作精神，能承受较大工作压力。","龙胜县城",5.7,"新能源板块"]
[14,"广西桂水电力股份有限公司那坡发电分公司","水电站运行员","1、负责水电站的日常发电运行；\n2、负责发现并判断机组主辅设备、升压站、厂变、坝变一般安全隐患；\n3、负责机组主辅设备一般安全措施操作及故障或事故处理；\n4、负责机组及其辅属设备的正常操作、巡查与数据记录；\n5、负责岗位安全，负责厂房、机组主辅设备清洁卫生；","校招或社招",5,"大专及以上",null,"发电厂及电力系统、电气工程及其自动化"," 1、发电厂及电力系统、电气工程及其自动化、电力系统自动化、机电一体化、机械电子工程、能源与动力工程（水动方向）等相关专业；\n2、大专及以上学历，有相关工作经验和操作证优先；\n3、身体健康、责任心强、吃苦耐劳、服从组织安排，有意愿长期在水电站发展。","那坡县各乡镇",6.5,"新能源集团"]
[15,"广西桂水电力股份有限公司天湖发电分公司","劳资专责","1.负责制定薪酬、福利待遇等薪资方案，组织开展薪酬管理工作。\n2.负责公司员工每月工资、绩效、补助、加班等制表、发放工作。\n3.配合主任负责制定公司绩效管理办法，并组织实施。\n4.负责办理员工退休、退休增资补差核算、移交社区管理等相关工作。\n5.负责公司员工五险一金、企业年金的具体工作。\n6.负责上报有关人事、劳资、薪酬方面的各种报表。\n7.负责军转干部管理具体工作。","校招",1,"大专及以上","无","经济学类、财政学类、审计学类相关专业","1.有一定的书面、口头表达能力，计算机各种软件的操作能力，解决问题、分析判断能力，有保密意识、服务意识。\n2.有较强的逻辑思维能力、沟通能力和责任心，有良好的团队协作精神。","广西全州","6万/年","新能源集团"]
[16,"广西桂水电力股份有限公司天湖发电分公司","电气值班员","1.严格遵守巡视检查设备制度，按规定对各种设备进行巡视检查，对发现的设备缺陷和异常情况及时向值长和检修人员汇报，并积极配合处理。\n2.正确执行值长下达的操作命令，在监护人的监护下进行倒闸操作和迅速处理设备故障，并做好相关记录。\n3.严格执行“两票三制”，按规定办理各种工作票、操作票。\n4.负责填写运行日志，确保数据真实准确。\n5.利用科学的运行方式，努力降低厂用电，保证设备在最佳的状态下运行。\n6.详细记录对本值管辖设备发生故障，并参加有关故障、事故的调查。\n7.协助配合电站各项检查资料的汇总、整理、上报工作。\n8.认真做好设备、厂区的清洁卫生。\n9.协助有关领导及职能小组开展各种工作。","校招",1,"大专及以上","无","电气、电子及自动化类","1.熟知电气设备、电力系统、继电保护等知识。\n2.熟悉电力工业技术管理法规，掌握电力工业安全生产规章制度。\n3.具有独立操作，正确判断、处理事故及异常情况能力。\n4.有电力相关证书者优先。","广西全州","6万/年","新能源集团"]
[17,"广西桂水电力股份有限公司灌阳发电分公司","水利水电工程智能管理专责","1.负责电站、水库智能化管理系统的建设与实施。\n2.负责电站、水库的控制系统设计、调试和运行维护工作。\n3.负责电站智能控制系统的现场安装、调试、维护和故障排除等工作。\n4.负责电站的运行管理、数据分析和故障诊断等工作。\n5.制定和修订智能管理系统的相关制度、流程和规范等文件资料。","校招",1,"大专及以上","无","电气、电子及自动化类","1.掌握电站、水库智能控制的基本原理、基本原理和方法，熟练掌握相关软件的操作技能，具备电气自动化相关专业背景。\n2.有较强的逻辑思维能力、沟通能力和责任心，有良好的团队协作精神。","广西灌阳","5万/年","新能源集团"]
[18,"广西桂水电力股份有限公司融水发电分公司","发电运行员","1.对所管辖的设备安全，经济运行全面负责；\n2.掌握设备的运行情况，做到认真监视和调整，保证设备运行符合规程要求，使设备经常处于良好的运行状态；\n3.及时排除设备故障，处理事故，严格完成重大操作事项，保证运行安全；\n4.认真执行各项规章制度，保证正常操作及事故处理的正确性，严防人身设备事故。","校招或社招均可",4,"全日制大专或以上",null,"电气、电子及自动化类、水利类、能源动力及工程热物理类","1.熟知电气设备、电力系统、继电保护等知识。\n2.熟悉电力工业技术管理法规，掌握电力工业安全生产规章制度。\n3.熟悉主要经济指标统计方法和设备可靠性管理的术语。\n4.具备相应班组管理知识，具有独立操作，正确判断、处理事故及异常情况能力。\n5.有电力相关证书者优先。","宜州片区"]
[19,"广西水利电业集团新疆克州水利发电有限公司","文秘","负责公司发文审核，文电收发、拟办、登记、传递；相关会议的组织、材料准备工作；公司重大会议的会议记录、录像（音）、资料整理及会议纪要等工作；文件起草、发文审核、工作总结、工作安排、报告、大事记编写等工作；对会议重要决策事项及领导批办事项的落实情况进行跟踪、监督、反馈和协调；公司经营管理信息的报送、更新工作；对外的宣传对接和公关应对工作；公司档案资料的收集，整理，保管和提供借阅工作；协助做好其他办公室工作。","校招",1,"本科及以上","不限","秘书,文秘,文秘学,现代秘书,现代文秘,文秘与办公自动化,文秘教育,商务秘书,中文教育,秘书教育,汉语言文学教育，汉语言,","1.身心健康，能吃苦耐劳，服从安排，能够适应本岗位工作，具有较强的文字功底，能够熟练操作使用相关的办公软件。\n2.有良好的表达能力，协调能力好。","新疆克州阿克陶县奥依塔克镇",14,"发电板块"]
[20,null,"水工技术员","负责水电站及大坝的水工建筑、隧洞引水工程等水工设施检查及维护管理、安全监测设备设施维护管理等工作，落实完成相关制度、资料的记录整理工作。","校招",1,"本科及以上","不限","水利水电工程、水利水电工程管理、水利水电建筑工程等相关专业","1.遵守宪法和法律法规，品行端正，诚实守信，无违规违纪行为及不良记录。2.身体健康，符合国家《公务员录用体检通用标准（试行）》中规定的健康体检标准及行","新疆克州阿克陶县奥依塔克镇",13.5,"发电板块"]
[21,null,"自动化技术员","负责水电站机电设备、电力监控系统、集控中心监控系统、通讯系统自动化设备的日常检修及维护管理等工作，落实完成相关设备管理制度、资料的记录整理工作。","校招",1,"本科及以上","不限","电力系统及其自动化、水电站机电设备与自动化、电气工程及其自动化、能源工程及自动化、发电厂及电力系统、继电保护等相关专业","1.遵守宪法和法律法规，品行端正，诚实守信，无违规违纪行为及不良记录。2.身体健康，符合国家《公务员录用体检通用标准（试行）》中规定的健康体检标准及行","新疆克州阿克陶县奥依塔克镇",13.5,"发电板块"]
[22,"广西桂水电力股份有限公司资源发电分公司","办公室文秘","1.应届毕业，身体健康，女生优先；                                                                                                                                    2.熟悉办公室行政管理知识和工作流程，熟悉公文写作，熟练运行office等办公软件；                                                                                           3.有较强的书面语言、文字表达能力和口头表达能力，能独立完成起草公司综合性文字材料能力；                                                                              4. 具有阳光、自信等亲和力，诚恳、敬业、责任心强，为人热沈、勇于担当，办事专心细致，擅长沟通协调、沟通表达和团队协作能力。                                                                                                                                                                                                                                                                                             ","校招",1,"大专","不限","教育学类","1.政治思想好，身体健康，工作积极认真，能吃苦耐劳；                                                                                    2.熟悉企业文化建设、企业宣传工作的相关知识，熟悉企业文化建设及企业宣传基本流程。                                                                                     3.具有良好的沟通能力、执行力、语言表达和文字表达能力，有较强的学习能力，能够独立完成各项常规性工作，具有良好的办公软件和信息化系统操作能力。","资源县县城","按《广西农投新能源集团有限公司所属各企业中层及以下员工薪酬管理办法》执行","新能源板块"]
[23,"广西桂水电力股份有限公司资源发电分公司","少人值守后台管理岗位","1. 应届毕业，身体健康；                                                                                                                                                           2.熟悉发电设备原理和运行操作及维护能力，基本掌握设备的运行情况，保证设备运行符合规程要求，使设备经常处于良好的运行状态；\n3.及时排除设备故障，处理事故，严格完成重大操作事项，保证运行安全；\n4.认真执行各项规章制度，保证正常操作及事故处理的正确性，严防人身设备事故。","校招",1,"大专","不限","电力系统自动化技术","1.政治思想好，身体健康，工作积极认真，能吃苦耐劳；                                                                                                 2.具有高压或低压特种作业操作证；                                                                                   3.具有好的语言发达能力和人际关系沟通能力；                                     4.熟练掌握电力系统自动化技术操作系统的管理、维护；                                                                                   5.具有良好执行力，有较强的学习能力，能够独立完成各项常规性工作，具有较好的办公软件和信息化系统操作能力。","资源县各乡镇","按《广西农投新能源集团有限公司所属各企业中层及以下员工薪酬管理办法》执行","新能源板块"]
[24,"广西桂水电力股份有限公司资源发电分公司","生产技术巡查岗位","1. 应届毕业，身体健康，男生优先；                                                                                                                                                                               2.熟悉发电设备原理和运行操作及维护能力，基本掌握设备的运行情况，保证设备运行符合规程要求，使设备经常处于良好的运行状态；\n3.及时排除设备故障，处理事故，严格完成重大操作事项，保证运行安全；\n4.认真执行各项规章制度，保证正常操作及事故处理的正确性，严防人身设备事故。","校招",1,"大专","不限","建筑工程技术                               （要求为电力学院毕业）","1.政治思想好，身体健康，工作积极认真，能吃苦耐劳；                                                                                                                                                              2.具有好的语言发达能力和人际关系沟通能力；                                     3.熟练掌握建筑工程技术操作系统的管理、维护；                                                                                   4.具有良好执行力，有较强的学习能力，能够独立完成各项常规性工作，具有较好的办公软件和信息化系统操作能力。","资源县各乡镇","按《广西农投新能源集团有限公司所属各企业中层及以下员工薪酬管理办法》执行","新能源板块"]
[25,"广西桂水电力股份有限公司荔浦发电分公司","会计","1.负责往来帐核算、固定资产、原材料、产成品、成本计算、销售费用、管理费用、财务费用核算；\n2.负责收入、支出、应交税金、应付职工薪酬核算；办理有关交纳各种税款、费用业务；\n3.负责办理与财务有关的证件业务；负责配合上级部门有关税务、财务、审计的审查；\n4.负责配合上级部门有关税务、财务、审计的审查；审核报销的原始凭证、编制会计凭证、编制财务报表。","校招",1,"大学本科及以上","不限","会计学类","1.有一定的书面、口头表达能力，电脑应用能力，解决问题、分析判断能力。                                                            2.有责任心、纪律性、主动性、有团队精神、保密意识、服务意识。                                                                           3.身体健康、吃苦耐劳，服从安排，具有较强的责任心、较强的沟通协调能力和良好的团队合作精神。","荔浦市区",7,"新能源集团"]
[26,"广西桂水电力股份有限公司荔浦发电分公司","发电运行人员","1.对所管辖的设备安全，经济运行全面负责；\n2.掌握设备的运行情况，做到认真监视和调整，保证设备运行符合规程要求，使设备经常处于良好的运行状态；\n3.及时排除设备故障，处理事故，严格完成重大操作事项，保证运行安全；\n4.认真执行各项规章制度，保证正常操作及事故处理的正确性，严防人身设备事故。","校招",2,"大专及以上","不限","电气、电子及自动化类、计算机科学与技术类","1.熟知电气设备、电力系统、继电保护等知识。                                                    2.熟悉电力工业技术管理法规，掌握电力工业安全生产规章制度。                                                                              3.熟悉主要经济指标统计方法和设备可靠性管理的术语。                                                              4.具备相应班组管理知识，具有独立操作，正确判断、处理事故及异常情况能力。                                                          5.身体健康、吃苦耐劳，服从安排，具有较强的责任心、较强的沟通协调能力和良好的团队合作精神。                                                        6.有电力相关证书者优先。","荔浦市乡镇",7,"新能源集团"]
[27,"广西桂水电力股份有限公司荔浦发电分公司","人力资源管理","1.负责公司各种会议组织、会文处理、事务接待等日常工作，负责起草公司的公文、规章制度、会议纪要、大事记等综合性文字及校对工作；           2.参与公司企业管理和法律事务、宣传、企业文化、精神文明等工作；                3.负责管理公司广书、文印、信息、档案、外事、接待及部门考核等日常工作。                                         \n","校招",1,"大专及以上","不限","教育学类","1.熟悉办公室行政管理知识和工作流程，熟悉公文写作，熟练运用office等办公软件。\n2.工作细致认真，责任心强，具备较强的书面和口头表达能力。                                                                              3.有一定的文字表达能力，熟悉教育培训等相关工作。                                                                                       3.身体健康、吃苦耐劳，服从安排，具有较强的责任心、较强的沟通协调能力和良好的团队合作精神。","荔浦市区",7,"新能源集团"]
[28,"蒙山片区-广西桂水电力股份有限公司蒙山发电分公司","发电运行岗","1.对所管辖的设备安全，经济运行全面负责；\n2.掌握设备的运行情况，做到认真监视和调整，保证设备运行符合规程要求，使设备经常处于良好的运行状态；\n3.及时排除设备故障，处理事故，严格完成重大操作事项，保证运行安全；\n4.认真执行各项规章制度，保证正常操作及事故处理的正确性，严防人身设备事故。","校招/社招",2,"大专及以上",null,"发电厂及电力系统、电力系统自动化等电气、电子及自动化类专业","工作认真负责、积极主动，服从安排。具备良好的职业操守、团队合作精神，具备较强的问题解决能力和判断力。","蒙山片区",5,"发电"]
[29,"蒙山片区-广西桂水电力股份有限公司蒙山发电分公司","工程管理岗","工程项目的成本估算、预算编制、成本控制及造价分析；参与工程合同的制定与审查等；熟悉设计施工图纸、施工方案等，熟练掌握EXCEL办公软件、CAD绘图软件；设备运行。","校招/社招",3,"大专及以上",null,"水利水电工程、工程造价等专业","工作认真负责、积极主动，服从安排。具备良好的沟通能力、职业操守、团队合作精神，具备较强的问题解决能力和判断力。","蒙山片区",6,"发电"]
[30,"蒙山片区-广西桂水电力股份有限公司蒙山发电分公司","技术专责岗","各电站的技术标准制定、监控保护参数审核、实验数据审核分析；技改规划、大修计划、智能化电站建设、电力通信及信息通讯管理等。","校招/社招",1,"大专及以上",null,"大数据技术等计算机科学与技术类专业毕业","工作认真负责、积极主动，服从安排。具有较强的复杂事故的分析、判断、处理的能力。具有良好的办公软件和信息化系统操作能力。","蒙山片区",6,"发电"]
[31,"蒙山片区-广西桂水电力股份有限公司蒙山发电分公司","综合会计岗","负责企业预算工作、资金工作、固定资产管理（建账、折旧、报废等）、税务，核算各项成本及费用，监督各部门的费用支出，加强企业成本控制、审核会计付款凭证和会计报表、会计信息管理等工作。","校招/社招",1,"大专及以上",null,"财务管理、财务信息管理、会计电算化等会计学类","工作认真，积极主动，服从安排。严格执行保密制度，熟练掌握会计电算化操作。","蒙山片区",6,"发电"]
[32,"藤县片区-广西水利电业集团有限公司藤县发电分公司","发电运行员","1.对所管辖的设备安全，经济运行全面负责；\n2.掌握设备的运行情况，做到认真监视和调整，保证设备运行符合规程要求，使设备经常处于良好的运行状态；\n3.及时排除设备故障，处理事故，严格完成重大操作事项，保证运行安全；\n4.认真执行各项规章制度，保证正常操作及事故处理的正确性，严防人身设备事故。","不限",2,"大专及以上","不限","电子设备与运行管理、发电厂及电力系统、电力系统继电保护与自动化,、电力系统自动化技术,电力系统继电保护与自动化技术、水电站机电设备与自动化等电气类专业","优先考虑藤县本地人员","藤县各乡镇",null,"新能源"]
[33,"广西桂水电力股份有限公司西林发电分公司","技术主管","1.负责公司信息自动化等技术工作；负责集控中心及智能化电站电力通信及信息通讯管理。\n2.负责公司技术发展规划工作，建立完整的信息化技术、设备相关资料及档案的收集、归档、保管工作；\n3.编制信息化设备技术规程及规范，制定公司的有关技术标准；\n4.制订、指导、落实信息化设备、设施维修及维护方案；\n5.熟悉信息化安装、施工现场管理、竣工验收等工作，\n6.对本岗位安全生产工作负责，维护公司利益，服从调度。\n7.精通局域网的维护和网络安全知识，能够熟悉网络设备的基本维护和故障处理。\n8.熟悉和掌握各种计算机软硬件，能够独立安装、调试及故障排除。","校招",1,"本科","工学学士","电气工程及其自动化,智能电网信息工程,电气工程与智能控制专业，计算机网络、通信工程","1.30周岁以下，身体健康。\n2.熟悉发电行业通信网络自动化知识、电气设备管理和维护，具备生产技术管理、生产经营计划和管理能力。\n3.能够胜任公司系统内通信网络、电气工程及其自动化系统维护、编程等工作。\n4.具有良好的办公软件和信息化系统操作能力。\n5.有一定的分析问题和解决问题的能力。","西林片区",null,"新能源","集控中心"]
[34,"广西桂水电力股份有限公司西林发电分公司","技术专责","熟悉和掌握水电站自动化系统维护、维修、检测、调试及设备管理；水电站智能化改造项目管理及技术培训等业务。","校招",6,"本科",null,"电气、电子及自动化类","身体健康，专业成绩优秀，熟悉水电站运行、维护检测、调试及设备管理，水电站智能化改造项目管理及技术培训等。","西林片区",null,"新能源","生产技术部"]
[null,"合计",{"$nulls":3},{"$f":"SUM(F4:F37)","v":56}]

{"sheet":"港澳台青年校招岗位汇总","index":2,"n_rows":9,"n_cols":6,"rows_kept":9,"merged":[[0,0,0,5],[1,0,2,0],[1,1,2,1],[1,2,2,2],[1,3,2,3],[1,4,2,4],[1,5,2,5],[8,0,8,2]]}
["广西农村投资集团有限公司面向港澳台青年就业岗位需求表"]
["序号","单位名称","岗位名称","岗位数量","岗位要求、职责","就业地点"]
[]
[1,"广西种业集团有限公司","经营与安监管理部资产管理岗",1,"岗位要求：\n1.本科以上学历，工商管理、财务等相关专业；\n2.具备财务金融、企业管理、数据分析、安全生产等相关知识。\n岗位职责：\n负责编写资产产权管理制度并监督管理、拟定股权管理方案、核算业务并编制报表、指导三级公司资产产权管理工作等","广西南宁"]
[2,"广西农机服务集团有限公司（广西农业机械研究院有限公司）","安全环保部\n生产管理岗",1,"岗位要求：\n1.本科以上学历，机械类、机电安装、电力、工程管理等相关专业；\n2.熟练掌握安全生产法律法规、行业标准、安全生产制度、精通安全生产管理方法和技巧；\n3.具有良好的风险意识、执行力、应急排查和救援能力、沟通协调能力，具有良好的办公软件和信息化系统操作能力。\n岗位职责：\n负责对标行业安全标准数据，制定安全生产相关制度，做好安全生产指导及管理相关工作。","广西南宁"]
[3,"广西侨旺纸模制品股份有限公司","生产技术部\n设备技术岗",1,"岗位要求：\n1.本科以上学历，机械类专业；\n2.熟悉生产线机械设备、技改和设备管理知识、技能。\n岗位职责：\n1.负责技改项目设备安装方案的制定，设备选型、安装预算、材料预算和安装计划和实施过程监督、项目验收等相关技术和管理工作，对外加工要求及材料选型；\n2.负责协助解决、研究和解决设备故障难题和技术难点，保证生产设备正常运行以及设备更新、节能技术、技术安全和环境保护的有关技术管理和评定工作；\n3.负责收集本专业国内外相关技术资料信息，为部门和公司的研发和技改工作提供决策依据；协助部门经理和副经理做好部门的培训和资料归档等管理工作。","南宁武鸣"]
[4,"广西舒雅护理用品有限公司","生产技术部\n生产技术岗",1,"岗位要求：\n1.本科以上学历，机械类专业；\n2.具有扎实的机械类专业理论知识，熟练使用CAD/CAXA等制图软件。\n岗位职责：\n负责制图画图及生产设备管理及维护，监控各仪器系统的运作，及时应对系统出现的异常情况，对生产过程中机械设备存在的问题提出改进意见。","南宁武鸣"]
[5,"广西博冠环保制品有限公司","市场营销部\n市场营销岗",1,"岗位要求：\n1.本科以上学历，工商管理、市场营销等相关专业；\n2.熟悉产品包装、产品推广、市场营销等相关工作，熟悉新媒体运营推广。\n岗位职责：\n1. 负责公司产品的销售及推广，开拓新市场，发展新客户，增加产品销售范围，对销售团队进行培训和指导，提高团队的销售能力和业务水平；               \n2. 与国外客户保持良好的沟通，了解客户需求，提供专业的产品解决方案，并及时回复客户的咨询和疑问，协助公司参加国内外的展会、研讨会等活动，展示公司产品，提升公司品牌知名度；                                                                                                                     3. 定期进行市场调研，收集市场信息和竞争对手情况，分析市场趋势，制定销售策略。负责销售合同的签订、执行和跟踪，确保货款的及时回收。","河池宜州"]
["合计",null,null,{"$f":"SUM(D4:D8)","v":5}]

{"sheet":"港澳台青年实习岗位汇总","index":3,"n_rows":11,"n_cols":7,"rows_kept":11,"merged":[[0,0,0,6],[10,0,10,2]]}
["广西农村投资集团有限公司面向台湾青年实习岗位需求表"]
["序号","单位名称","岗位名称","岗位数量","岗位要求、职责","实习地点","实习时间及时长"]
[1,"广西农投桂盛农业投资有限公司","生产运营部\n技术研发岗",1,"岗位要求：\n1.本科以上学历，农业、工商管理相关专业；\n2.掌握市场调研工作相关技巧，具备一定的营销，新媒体运营能力。\n岗位职责：\n研究市场需求，结合公司战略，更新产品研发计划，推动产品体系不断创新。","南宁市","3个月"]
[2,"广西农投现代农业服务有限公司","规划营销部\n规划与经营岗",1,"岗位要求：\n1.本科以上学历，农业、工商管理相关专业；\n2.了解现代农机服务领域相关信息及政策，了解企业管理、经营管理等相关知识。\n岗位职责：\n1.负责编制产品规划及种植规划，优化公司业务发展方案、做好全过程成本管理；\n2.负责组织编制公司年度经营计划书，月度、季度经营分析报告和各项投资方案、计划书等。","南宁市","3个月"]
[3,"广西农机服务集团有限公司（广西农业机械研究院有限公司）","经营管理部\n产权管理岗",1,"岗位要求：\n1.本科以上学历，工程、金融、经济、统计、财务管理类等相关专业；\n2.熟悉工程项目管理、企业经营管理、财务管理等相关知识；\n3.具备较强分析判断能力、公文写作能力、沟通协调能力、行业洞察能力，掌握基础办公软件操作能力。\n岗位职责：\n负责编写资产产权管理制度并监督管理、拟定股权管理方案、核算业务并编制报表。","南宁市","3个月"]
[4,"广西甘蔗生产服务有限公司","农机服务部\n农业技术岗",1,"岗位要求：\n1.本科以上学历，农业相关专业；\n2.熟练操作办公软件，熟悉国家相关政策、法律法规，熟悉行业相关知识，掌握了解行业业态；\n3.具备沟通能力、执行力，能吃苦耐劳，能适应出差下乡工作。\n岗位职责：\n1.收集、整理、分析公司经营数据，及时准确输出经营统计报表，出具公司经营分析报告，为经营决策提供依据。\n2.结合公司发展战略、业务需求及市场环境变化，协助部门经理制定公司短期、中期、长期投资机会，为项目投资提供指引。\n3.收集、统计和汇总产权业务相关数据资料，撰写业务分析报告。","南宁市","3个月"]
[5,"广西舒雅护理用品有限公司","生产技术部\n生产技术岗",1,"岗位要求：\n1.本科以上学历，机械类专业，熟练使用CAD/CAXA等制图软件；\n2.具备沟通能力、执行力，能吃苦耐劳。\n岗位职责：\n负责制图画图及生产设备管理及维护，监控各仪器系统的运作，及时应对系统出现的异常情况，对生产过程中机械设备存在的问题提出改进意见。","南宁武鸣","3个月"]
[6,"南宁侨虹新材料股份有限公司","生产技术部\n研发技术岗",1,"任职要求：\n1.本科及以上学历，造纸或纺织轻工类专业；\n2.身体健康、吃苦耐劳。\n岗位职责：\n参与新产品研发工作，负责统计和分析研发数据，负责收集和归档技术材料等。","南宁武鸣","3个月"]
[7,"广西侨旺纸模制品股份有限公司","生产技术部\n工艺技术岗",1,"任职要求：\n1.本科及以上学历，制浆造纸相关专业；\n2.身体健康、吃苦耐劳。\n岗位职责：\n负责制订生产工艺流程、技术指标，根据质量要求组织编制工艺规程，逐步完善生产工艺标准。","南宁武鸣","3个月"]
[8,"广西博冠环保制品有限公司","市场营销部\n市场营销岗",1,"任职要求：\n1.本科及以上学历，市场营销、国际商务、国际市场营销等相关专业；\n2.具备良好的英语口语表达和听说读写能力，能够与国外客户进行有效的沟通，有一定的市场分析，营销推广能力；\n3.有较强的事业心，有团队合作精神，能够适应出差。\n岗位职责：\n1.负责公司产品的销售及推广，开拓新市场，发展新客户，增加产品销售范围。2.与国外客户保持良好的沟通，了解客户需求，提供专业的产品解决方案，并及时回复客户的咨询和疑问；\n2.定期进行市场调研，收集市场信息和竞争对手情况，分析市场趋势，制定销售策略，负责销售合同的签订、执行和跟踪，确保货款的及时回收；\n3.协助公司参加国内外的展会、研讨会等活动，展示公司产品，提升公司品牌知名度，对销售团队进行培训和指导，提高团队的销售能力和业务水平。","河池宜州","3个月"]
["合计",null,null,{"$f":"SUM(D3:D10)","v":8}]

{"sheet":"2025年招聘计划（社招）","index":4,"n_rows":23,"n_cols":14,"rows_kept":23,"hidden":true,"merged":[[0,0,0,12],[1,0,2,0],[1,1,2,1],[1,2,2,2],[1,3,2,3],[1,4,2,4],[1,5,2,5],[1,6,1,9],[1,10,2,10],[1,11,2,11],[1,12,2,12],[1,13,2,13],[8,13,11,13]]}
["新能源集团2025年招聘岗位需求表"]
["序号","招聘单位","招聘岗位","岗位描述","招聘形式\n（校招/社招）","招聘人数","招聘条件",{"$nulls":3},"工作地点","薪资待遇\n（万元/年）","板块","备注"]
[{"$nulls":6},"学历","学位","专业","其他任职条件"]
[1,"广西桂水电力股份有限公司大新发电分公司","党务专责","1.负责协助公司党支部认真贯彻、落实党的路线、方针、政策，抓好政治理论和党章的学习；\n2.做好党员发展工作，保证发展党员的质量和结构；\n3.健全党的组织生活等管理形式，做好党费收缴、党员组织关系接转、党的文件传递、材料的建档、统计等工作；\n4.协助做好纪检、监察、勤政廉洁和纠风方面的具体工作；\n5.负责相关工作文件、计划、总结、汇报、情况通报和其他有关材料的起草等工作；\n6.做好有关法律法规、党风党纪、反腐倡廉、企业文化建设的宣传教育工作，协助公司做好员工政治思想工作；","社招",1,"大专及以上","不限","汉语言文学、文秘、行政管理、文化事业管理、新闻与传播专业","1.40周岁以下，身体健康。\n2.热爱党务工作,熟悉党务知识、熟悉国企党建工作、群团工作。\n3.具有良好的办公软件操作能力。\n4.具备良好的沟通协调能力和抗压能力。","大新县",6,"能源板块"]
[2,"广西桂水电力股份有限公司大新发电分公司","会计员","1.负责公司会计核算和账务处理工作，编制财务报表，按集团公司要求上报相关财务资料；\n2.审核各类收支费用票据，并严格执行费用报销和资金付款的工作程序和管理规定，规范公司财务管理；\n3.负责会计凭证、账簿、财务报表的整理和存档；\n4.完成领导交办的其他工作。","社招",1,"本科及以上","不限","会计、财务管理、审计专业","1.30周岁以下，身体健康；\n2.熟练掌握会计知识和技能，熟悉财经法规；\n3.具有良好的办公软件和信息化系统操作能力；\n4.具备良好的沟通协调能力和抗压能力。","大新县",6,"能源板块"]
[3,"广西钦州琦泉生物质发电有限公司","综合检修人员","管路焊接、机务维修设备及电气检修工作。","社招",2,"高中（中专）及以上学历","不限","机电一体化专业","政治想想表现好，工作认真负责，能够吃苦耐劳，要求熟悉机械维修、电焊（持有普焊证能应对抢修及临时加班）及电气工作技能人员，男性年龄不超过50岁。","广西钦州市大寺镇",50400,"新能源板块"]
[4,"凌云片区","技术员","\n熟悉水电站电气设备的工作原理，了解掌握现场电气设备的各种安装规范，具有较强的专业技能，具备独立组织实施水轮发电机设备检查、维修、安全监测和数据分析能力，有水电站管理或相关的工作经验优先。\n","社招",1,"全日制大专及以上",null,"电气自动化、电气工程、发配电、电力系统及自动化等相关专业","具有良好的沟通协调能力和吃苦耐劳精神。","凌云片区所辖范围内",10,"新能源板块"]
[5,"凌云片区","技术员","负责公司日常电脑技术管理、集控中心及各电站的技术标准制定、监控保护参数审核、实验数据审核分析。指导、解决电站、集控中心运行过程中的技术难题。","社招",1,"全日制大专及以上",null,"计算机、软件编程等相关专业","具有良好的沟通协调能力和吃苦耐劳精神。","凌云片区所辖范围内",10,"新能源板块"]
[6,"恭城片区","出纳","1. 服从公司及部门主任的领导，认真贯彻执行国家的财经法规，上级有关现金管理和银行结算规定和公司财务管理制度，把好收付关；对违反规定的收支，应拒绝办理；有重大问题的要及时向领导汇报，以便采取有效措施进行处理；\n2.负责办理现金收付和银行结算业务；\n3.负责保管公司现金、各种支票、有价证券、有关印章，并严格按规定使用印章。\n4.及时按规定登记现金和银行日记帐，做到日清月结；\n5.根据已登记日记的原始凭证，按时编制现金、银行存款日报表，及时向有关的会计报帐；\n6.及时与银行帐单核对，按月编制银行存款余额调节表和银行存款余额核对清单，做到日记帐账余额与银行对帐单余额调节相符，日记帐余额与总帐余额相符。\n\n","社招",1,"大专及以上","不限","会计学、财务管理及相关专业","户籍为恭城县或者平乐县","恭城县城",null,"新能源","三改定岗定编批复人数（不含班子）221人，截止到9月底，在岗人数为204人，本年底在岗人员将再退休3人，计算到2024年底，在岗人数为201人，缺岗20人。"]
[7,"恭城片区","电气技术专责","1.负责公司信息自动化等技术工作；负责智能化电站建设、电力通信及信息通讯管理。\n2.负责公司技术发展规划工作，建立完整的信息化技术、设备相关资料及档案的收集、归档、保管工作；\n3.编制信息化设备技术规程及规范，制定公司的有关技术标准；\n4.制订、指导、落实信息化设备、设施维修及维护方案；\n5.熟悉信息化安装、施工现场管理、竣工验收等工作，\n6.对本岗位安全生产工作负责，维护公司利益，服从调度。","社招",2,"大专及以上","不限","发电厂及电力系统、电气工程及其自动化、通信自动化、继电保护等电气类专业","1、户籍为恭城县或者平乐县      ","恭城县城",null,"新能源"]
[8,"恭城片区","发电运行技术员","1.对所管辖的设备安全，经济运行全面负责；\n2.掌握设备的运行情况，做到认真监视和调整，保证设备运行符合规程要求，使设备经常处于良好的运行状态；\n3.及时排除设备故障，处理事故，严格完成重大操作事项，保证运行安全；\n4.认真执行各项规章制度，保证正常操作及事故处理的正确性，严防人身设备事故。","社招",2,"大专及以上","不限","发电厂及电力系统、电气工程及其自动化、通信自动化、继电保护等电气类专业","1、户籍为恭城县或者平乐县      ","恭城片区所辖企业",null,"新能源"]
[9,"恭城片区","水工技术专责","1.熟悉有关水电站设备设施管理的国家法律法规及集团规定，全面负责设备设施的运行 ；                                                                                                       2.负责水电站水工设施、动力设备及自动化设备设施的巡视检查及调试工作，及时发现故障并进行处理，确保设备设施的正常运行；\n3.负责水电站水库、渠道的水位、库容的监控管理，及时对水电站机电设备运行进行运行调节，确保水电站的正常高效运行；\n4.负责水电站日常隐患排查及治理，确保水电站的安全运行；\n5.负责水电站设备设施运行和维修计划及实施管理；                                     6.参与水电站技术改造项目的实施及验收工作。","社招",1,"大专及以上","不限","水利水电工程、水电站动力设备与管理、水利水电建筑工程等相关专业","1、户籍为恭城县或者平乐县                             2、  男性优先","恭城县城",null,"新能源"]
[10,"龙胜片区","机械检修员","主要对水电站内的水力机械设备进行检修及维护。","社招",1,"大专及以上",null,"机电一体化技术、机电技术应用","1.35岁以下，具有三年以上水电站检修工作经验，懂水轮发电机组A修工作流程，熟练水轮发电机轴瓦研磨，会操作电站行吊设备；\n2.具有高压电工和特种作业资格证。\n","龙胜县城",5.7,"新能源板块"]
[11,"广西桂水电力股份有限公司天湖发电分公司","检修专责","1.负责公司新能源发电技术和自动化系统的管理工作。\n2.负责公司新能源设备的安装调试、日常维护、检修等工作。\n3.负责建立、健全公司各种技术资料的整理归档、统计、分析及管理等，优化和完善现有技术在生产过程中的应用。\n4.负责公司技术标准制定，制定并完善技术操作规程，实施技术标准管理。\n5.协助负责智能化电站建设工作的组织实施、推进。","社招",1,"本科及以上","理学学士","电气、电子及自动化类","1.熟悉数字电路、模拟电路等专业知识，熟练掌握自动化控制系统。\n2.有一定的自动化系统的现场调试和故障排除能力。\n3.有较强的逻辑思维能力、沟通能力和责任心，有良好的团队协作精神。","广西全州","6万/年","新能源集团"]
[12,"宜州片区","发电运行员","能胜任生技部对该岗位主要要求懂工程造价、懂水工专业。","社招",1,"全日制大专或以上","不限","土木类、建筑类","1.负责电站工程施工组织管理；\n2.负责图纸会审、技术核定；\n3.负责水电站渠道、水流的监测，及时调节排水面积，确保水电站的正常运营；\n4.负责水电站水利水电工程的运行和维护。\n5.完成领导交办的其他工作任务。","宜州片区"]
[13,"宜州片区","信息技术员","1.负责公司信息自动化等技术工作；负责智能化电站建设、电力通信及信息通讯管理。\n2.负责公司技术发展规划工作，建立完整的信息化技术、设备相关资料及档案的收集、归档、保管工作；\n3.编制信息化设备技术规程及规范，制定公司的有关技术标准；\n4.制订、指导、落实信息化设备、设施维修及维护方案；\n5.熟悉信息化安装、施工现场管理、竣工验收等工作，\n6.对本岗位安全生产工作负责，维护公司利益，服从调度。","社招",1,"大学本科及以上","不限","计算机科学与技术类及电气、电子及自动化类","1.30周岁以下，身体健康。\n2.熟悉发电行业机械、电气设备管理和维护，具备生产技术管理、生产经营计划和管理能力。\n3.能够胜任公司系统内电气工程及其自动化系统维护、编程等工作。\n4.具有良好的办公软件和信息化系统操作能力。\n5.有一定的分析问题和解决问题的能力。","宜州片区"]
[14,"宜州片区","财务","1. 服从公司及部门主任的领导，认真贯彻执行国家的财经法规，上级有关现金管理和银行结算规定和公司财务管理制度，把好收付关；对违反规定的收支，应拒绝办理；有重大问题的要及时向领导汇报，以便采取有效措施进行处理；\n2.负责办理现金收付和银行结算业务；\n3.负责保管公司现金、各种支票、有价证券、有关印章，并严格按规定使用印章；\n4.及时按规定登记现金和银行日记帐，做到日清月结；\n5.根据已登记日记的原始凭证，按时编制现金、银行存款日报表，及时向有关的会计报帐；\n6.及时与银行帐单核对，按月编制银行存款余额调节表和银行存款余额核对清单，做到日记帐账余额与银行对帐单余额调节相符，日记帐余额与总帐余额相符。","社招",1,"本科及以上","学士及以上","会计学类","1.熟练掌握财务和资金管理业务知识，熟悉国家有关财经政策、会计准则及统计知识。\n2.具有良好的团队协作意识、较强的分析问题和解决问题能力，能熟练使用财务软件和信息化系统开展工作。","融水"]
[15,"广西桂水电力股份有限公司资源发电分公司","项目工程管理员","1..身体健康，男性年龄在35岁周岁以下、女性在30周岁以下（截止2025年12月31日止），男士优先；                                                                                                                    2.熟悉水电站工程设计、预算、结算、验收等管理工作；\n3.具有良好的办公软件操作能力和写作能力；\n4.具备良好的沟通协调能力和抗压能力。","社招",1,"大专","不限","工程造价、工程管理专业（要求为电力学院毕业）","1.按照公司相关审核标准及工程要求标准，负责对设计施工图、报价清单、材料清单等资料进行报审；\n2.完善部门预决算的项目成本评估体系建立；\n3.负责相关项目提交的技术变更和签证单、工程竣工财务决算的审计工作；\n4.负责工程决算期间跟进工程款付款方面的沟通协调问题、催收账款等。","资源县各乡镇","按《广西农投新能源集团有限公司所属各企业中层及以下员工薪酬管理办法》执行","新能源板块"]
[16,"广西桂水电力股份有限公司资源发电分公司","发电运行岗位","1.身体健康，男性年龄在35岁周岁以下、女性在30周岁以下（截止2025年12月31日止）；                                                                                                                    2.熟悉发电设备原理和运行操作及维护能力，基本掌握设备的运行情况，保证设备运行符合规程要求，使设备经常处于良好的运行状态；\n3.及时排除设备故障，处理事故，严格完成重大操作事项，保证运行安全；\n4.认真执行各项规章制度，保证正常操作及事故处理的正确性，严防人身设备事故。","社招",1,"大专","不限","电气设备应用与维护","1.政治思想好，身体健康，工作积极认真，能吃苦耐劳；                                                                                                                                                                                          2.具有好的语言发达能力和人际关系沟通能力；                                     3.熟练掌握电气设备应用与维护操作系统的管理、维护；                                                                                   4.具有良好执行力，有较强的学习能力，能够独立完成各项常规性工作，具有较好的办公软件和信息化系统操作能力。","资源县各乡镇","按《广西农投新能源集团有限公司所属各企业中层及以下员工薪酬管理办法》执行","新能源板块"]
[17,"广西桂水电力股份有限公司荔浦发电分公司","信息技术员","1.负责公司信息自动化等技术工作；负责智能化电站建设、电力通信及信息通讯管理。\n2.负责公司技术发展规划工作，建立完整的信息化技术、设备相关资料及档案的收集、归档、保管工作；\n3.编制信息化设备技术规程及规范，制定公司的有关技术标准；\n4.制订、指导、落实信息化设备、设施维修及维护方案；\n5.熟悉信息化安装、施工现场管理、竣工验收等工作，\n6.对本岗位安全生产工作负责，维护公司利益，服从调度。","社招",2,"大学本科及以上","不限","电气、电子及自动化类、计算机科学与技术类","130周岁以下，有3年及以上相关工作经历。\n2.熟悉发电行业机械、电气设备管理和维护，具备生产技术管理、生产经营计划和管理能力。\n3.能够胜任公司系统内电气工程及其自动化系统维护、编程等工作。\n4.具有良好的办公软件和信息化系统操作能力。\n5.有一定的分析问题和解决问题的能力。                                     6..身体健康，吃苦耐劳，服从安排，具有较强的责任心、较强的沟通协调能力和良好的团队合作精神。","荔浦市乡镇",7,"新能源集团"]
[18,"广西桂水电力股份有限公司荔浦发电分公司","行政综合员","1.负责公司各种会议组织、会文处理、事务接待等日常工作；                          2.负责起草公司的公文、规章制度、会议纪要、大事记等综合性文字及校对工作；                                                                                                             3.参与公司企业管理和法律事务、宣传、企业文化、精神文明等工作；负责公司新媒体平台内容的制作、运营管理等；                                                          4.负责管理公司广书、文印、信息、档案、外事、接待及部门考核等日常工作。                                         \n","社招",1,"大学本科及以上","不限","文秘、行政管理、新闻学、广告学相关专业","1.中共党员，35周岁以下，2年及以上相关工作经验。                                                                           2.具有较强的文字功底和公文写作能力，能独立起草完成日常公文及综合文字材料、汇报材料等；能熟练使用办公软件和信息化系统开展工作。有广告、视频拍摄、制作经验者优先。                                                                                    3.身体健康、吃苦耐劳，服从安排，具有较强的责任心、较强的沟通协调能力和良好的团队合作精神。","荔浦市区",7,"新能源集团"]
[19,"广西桂水电力股份有限公司西林发电分公司","法务专责","能熟悉运用公司法、经济法、劳动法及其它国家法律法规，熟悉司法诉讼流程，能独立完成法律文书的起草工作，能有效应对企业面对的司法案件等。","社招\n（有司法工作相关经历者优先）",1,"大专及以上学历（西林本地应聘者优先）","法学学士","法律类","35周岁以下，政治面貌优良，身体健康，服从安排。具有一定的司法相关工作经历。","西林片区办公室",null,"新能源","办公室"]
[null,"合计",{"$nulls":3},{"$f":"SUM(F4:F22)","v":23}]